fUSD/lending_fUSD_20241205
["ID","MTS","AMOUNT","RATE_DAILY","PERIOD"]
[344408808,1733418684681,-1500.0,0.00024739,30]
[344408809,1733418684690,-1790.90320385,0.000249,20]
[344408810,1733418684701,-64113.77991978,0.000249,2]
[344408811,1733418684710,-1500.0,0.0002492,30]
[344408812,1733418684720,-1999.0,0.00024958,2]
[344408813,1733418684729,-1999.0,0.00024958,2]
[344408814,1733418684738,-1999.0,0.00024958,2]
[344408815,1733418684747,-1999.0,0.00024958,2]
[344408816,1733418684757,-1999.0,0.00024958,2]
[344408817,1733418684767,-1999.0,0.00024958,2]
[344408818,1733418684776,-1999.0,0.00024958,2]
[344408819,1733418684786,-1999.0,0.00024958,2]
[344408820,1733418684795,-1999.0,0.00024958,2]
[344408821,1733418684804,-1999.0,0.00024958,2]
[344408822,1733418684813,-1999.0,0.00024958,2]
[344408823,1733418684823,-1999.0,0.00024958,2]
[344408824,1733418684832,-1999.0,0.00024958,2]
[344408825,1733418684841,-1999.0,0.00024958,2]
[344408826,1733418684850,-1999.0,0.00024958,2]
[344408827,1733418684859,-1999.0,0.00024958,2]
[344408828,1733418684868,-1235.88522685,0.00024958,2]
[344408829,1733418684877,-1999.0,0.00024958,2]
[344408830,1733418684886,-272.78,0.00024958,2]
[344408831,1733418684896,-2000.0,0.00024987,31]
[344408832,1733418684905,-2000.0,0.00024987,31]
[344408833,1733418684916,-100000.0,0.00025,11]
[344408834,1733418684926,-100000.0,0.00025,12]
[344408835,1733418684935,-100000.0,0.00025,13]
[344408836,1733418684945,-100000.0,0.00025,14]
[344408837,1733418684955,-100000.0,0.00025,15]
[344408838,1733418684964,-100000.0,0.00025,16]
[344408839,1733418684974,-100000.0,0.00025,17]
[344408840,1733418684984,-100000.0,0.00025,18]
[344408841,1733418684994,-100000.0,0.00025,19]
[344408842,1733418685004,-100000.0,0.00025,20]
[344408843,1733418685015,-4624.40185994,0.00025,2]
[344408844,1733418685027,-150.0,0.00025,10]
[344408845,1733418685037,-120548.15436152,0.00025,2]
[344408846,1733418685047,-102271.56746971,0.00025,2]
[344408847,1733418685059,-248.03010367,0.00025,2]
[344408848,1733418685070,-1589.84925033,0.00025,2]
[344408849,1733418685079,-254.17087497,0.00025,2]
[344408850,1733418685089,-2906.28255167,0.00025,2]
[344408851,1733418685099,-15009.69596419,0.00025,14]
[344408852,1733418685108,-200.000009,0.00025,2]
[344408853,1733418685118,-553.8,0.00025,10]
[344408854,1733418685128,-2676.26288861,0.00025,10]
[344408855,1733418685137,-345.12488786,0.00025,2]
[344408856,1733418685147,-1019.0,0.00025,4]
[344408857,1733418685156,-1022.85639142,0.00025,60]
[344408858,1733418685166,-2371.43102171,0.00025,30]
[344408859,1733418685176,-1486.86082881,0.00025,60]
[344408860,1733418685186,-200.0,0.00025,120]
[344408861,1733418685195,-200.0,0.00025,120]
[344408862,1733418685204,-3336.77880105,0.00025,60]
[344408863,1733418685214,-150.0,0.00025,2]
[344408864,1733418685224,-23991.19886984,0.00025,30]
[344408865,1733418685238,-1011.2,0.00025,30]
[344408866,1733418685275,-913.666182,7.698e-05,2]
[344408867,1733418685288,-468.6243465,7.698e-05,2]
[344408868,1733418685298,-4997.60113016,0.00025,30]
[344408869,1733418685308,-512.499395,0.00025,7]
[344408870,1733418685317,-2110.0,0.00025,2]
[344408871,1733418685326,-13713.61928408,0.00025,120]
[344408872,1733418685338,-3745.9769965,0.00025,120]
[344408873,1733418685360,-2029.34,0.00013698,2]
[344408874,1733418685370,-115.66,0.00025,120]
[344408894,1733419784740,1000.0,7e-05,5]
[344408900,1733419832353,-2031.32085797,6.9e-05,2]
[344408901,1733419832362,-4800.0,6.93e-05,2]
[344408902,1733419832372,-503.64091238,6.973e-05,2]
[344408903,1733419832381,-6226.0,6.986e-05,2]
[344408904,1733419832391,-6129.0,6.986e-05,2]
[344408905,1733419832400,-150.0,6.998e-05,2]
[344408906,1733419832409,-300.0,6.998e-05,2]
[344408907,1733419832419,-171.66399728,6.999e-05,2]
[344408908,1733419832428,-239.20898232,6.999e-05,2]
[344408909,1733419832438,-500.0,6.999e-05,2]
[344408910,1733419832447,-500.0,6.999e-05,2]
[344408911,1733419832456,-158.0651198,6.999e-05,2]
[344408912,1733419832465,-167.70528516,6.999e-05,2]
[344408913,1733419832475,-500.0,6.999e-05,2]
[344408914,1733419832484,-500.0,6.999e-05,2]
[344408915,1733419832494,-500.0,6.999e-05,2]
[344408916,1733419832503,-420.92729314,6.999e-05,2]
[344408917,1733419832513,-500.0,6.999e-05,2]
[344408918,1733419832522,-500.0,6.999e-05,2]
[344408919,1733419832532,-500.0,6.999e-05,2]
[344408920,1733419832542,-500.0,6.999e-05,2]
[344408921,1733419832552,-500.0,6.999e-05,2]
[344408922,1733419832562,-500.0,6.999e-05,2]
[344408923,1733419832572,-500.0,6.999e-05,2]
[344408924,1733419832581,-500.0,6.999e-05,2]
[344408925,1733419832590,-500.0,6.999e-05,2]
[344408926,1733419832600,-500.0,6.999e-05,2]
[344408927,1733419832610,-500.0,6.999e-05,2]
[344408928,1733419832620,-500.0,6.999e-05,2]
[344408929,1733419832629,-500.0,6.999e-05,2]
[344408930,1733419832638,-266.76013473,6.999e-05,2]
[344408931,1733419832648,-500.0,6.999e-05,2]
[344408932,1733419832657,-500.0,6.999e-05,2]
[344408933,1733419832666,-500.0,6.999e-05,2]
[344408934,1733419832675,-500.0,6.999e-05,2]
[344408935,1733419832685,-500.0,6.999e-05,2]
[344408936,1733419832694,-500.0,6.999e-05,2]
[344408937,1733419832704,-500.0,6.999e-05,2]
[344408938,1733419832714,-500.0,6.999e-05,2]
[344408939,1733419832724,-1000.0,7e-05,2]
[344408940,1733419832734,-1000.0,7e-05,3]
[344408941,1733419832744,-1000.0,7e-05,4]
[344408942,1733419832754,-65159.24795003,7e-05,2]
[344408943,1733419832766,-25202.5,7e-05,2]
[344408944,1733419832777,-10072.19005,7e-05,2]
[344408945,1733419832793,-5124.0,7e-05,2]
[344408962,1733419833254,-124812.82293314,7e-05,2]
[344408963,1733419833270,-1774.01012085,7e-05,2]
[344408964,1733419833294,-185288.10300005,7e-05,2]
[344408965,1733419833306,-67099.31980077,7e-05,2]
[344408966,1733419833318,-105348.9902701,7e-05,2]
[344408967,1733419833330,-454.905,7e-05,2]
[344408970,1733419838313,-283254.57749334,7e-05,2]
[344408971,1733419838325,-9910.00026,7e-05,2]
[344408972,1733419838337,-23347.985094,7e-05,2]
[344408973,1733419838349,-2017.8306,7e-05,2]
[344408974,1733419838383,-1634.13694699,7e-05,2]
[344408975,1733419838507,-362.32011654,7e-05,2]
[344408976,1733419838518,-1367.53559361,7e-05,2]
[344408977,1733419838530,-1261.60273564,7e-05,2]
[344408978,1733419838542,-13045.9838511,7e-05,2]
[344408979,1733419838570,-111067876.17132331,7e-05,2]
[344408980,1733419838580,-150.245389,7.397e-05,2]
[344408981,1733419838590,-5706.6581147,7.397e-05,2]
[344408982,1733419838600,-13993.48437575,7.4e-05,2]
[344408983,1733419838612,-2487.64441817,7.499e-05,2]
[344408984,1733419838622,-337.4943,7.598e-05,2]
[344408985,1733419838631,-5581.96,7.598e-05,2]
[344408986,1733419838641,-1428.9734,7.598e-05,2]
[344408987,1733419838650,-2118.72,7.598e-05,2]
[344408988,1733419838660,-264.4311,7.598e-05,2]
[344408989,1733419838669,-3305.7985,7.598e-05,2]
[344408990,1733419838678,-1705.16999056,7.6e-05,2]
[344408991,1733419838687,-250.0,7.609e-05,2]
[344408992,1733419838697,-250.0,7.609e-05,2]
[344408993,1733419838707,-177.99,7.609e-05,2]
[344408996,1733419838716,-200.0,7.609e-05,2]
[344408997,1733419838726,-171.31,7.609e-05,2]
[344408999,1733419838736,-500.0,7.673e-05,2]
[344409002,1733419838746,-501.15683084,7.673e-05,2]
[344409003,1733419838755,-500.0,7.673e-05,2]
[344409006,1733419838765,-200.0,7.677e-05,2]
[344409008,1733419838775,-2089.94125946,7.677e-05,2]
[344409010,1733419838784,-200.0,7.677e-05,2]
[344409011,1733419838794,-200.0,7.677e-05,2]
[344409013,1733419838803,-2089.94125946,7.678e-05,2]
[344409016,1733419838813,-200.0,7.678e-05,2]
[344409017,1733419838822,-26333.87344258,7.678e-05,2]
[344409020,1733419838831,-271.0671233,7.678e-05,2]
[344409021,1733419838841,-19750.40508194,7.678e-05,2]
[344409023,1733419838851,-278.97348233,7.678e-05,2]
[344409026,1733419838864,-200.0,7.678e-05,2]
[344409028,1733419838873,-3715.45112793,7.678e-05,2]
[344409030,1733419838884,-200.0,7.678e-05,2]
[344409032,1733419838897,-200.0,7.678e-05,2]
[344409034,1733419838908,-261.52850931,7.679e-05,2]
[344409036,1733419838919,-200.0,7.679e-05,2]
[344409037,1733419838928,-464.93957211,7.679e-05,2]
[344409039,1733419838937,-217.41693779,7.679e-05,2]
[344409041,1733419838946,-881.69396883,7.679e-05,2]
[344409043,1733419838957,-200.0,7.679e-05,2]
[344409044,1733419838967,-881.69396883,7.679e-05,2]
[344409046,1733419838976,-200.0,7.679e-05,2]
[344409048,1733419838986,-2786.58834595,7.68e-05,2]
[344409050,1733419838995,-348.70467908,7.68e-05,2]
[344409052,1733419839005,-209.23011174,7.68e-05,2]
[344409053,1733419839014,-200.0,7.68e-05,2]
[344409054,1733419839024,-2089.94125946,7.68e-05,2]
[344409055,1733419839033,-200.0,7.68e-05,2]
[344409056,1733419839043,-1567.4559446,7.68e-05,2]
[344409057,1733419839054,-200.0,7.681e-05,2]
[344409058,1733419839063,-200.0,7.681e-05,2]
[344409059,1733419839072,-200.0,7.681e-05,2]
[344409060,1733419839082,-200.0,7.681e-05,2]
[344409061,1733419839091,-200.0,7.681e-05,2]
[344409062,1733419839101,-26333.87344258,7.681e-05,2]
[344409063,1733419839112,-200.0,7.681e-05,2]
[344409064,1733419839122,-200.0,7.681e-05,2]
[344409065,1733419839131,-200.0,7.682e-05,2]
[344409066,1733419839141,-200.0,7.682e-05,2]
[344409067,1733419839150,-217.41693779,7.682e-05,2]
[344409068,1733419839159,-200.0,7.682e-05,2]
[344409069,1733419839169,-271.0671233,7.682e-05,2]
[344409070,1733419839178,-348.70467908,7.682e-05,2]
[344409071,1733419839188,-200.0,7.682e-05,2]
[344409072,1733419839198,-1175.59195845,7.682e-05,2]
[344409073,1733419839208,-19750.40508194,7.682e-05,2]
[344409074,1733419839217,-464.93957211,7.682e-05,2]
[344409075,1733419839226,-289.88925039,7.682e-05,2]
[344409076,1733419839236,-26333.87344258,7.682e-05,2]
[344409077,1733419839246,-14812.80381145,7.682e-05,2]
[344409078,1733419839256,-11109.60285859,7.682e-05,2]
[344409079,1733419839266,-3715.45112793,7.683e-05,2]
[344409080,1733419839275,-19750.40508194,7.683e-05,2]
[344409081,1733419839286,-11109.60285859,7.683e-05,2]
[344409082,1733419839296,-348.70467908,7.683e-05,2]
[344409083,1733419839305,-217.41693779,7.683e-05,2]
[344409084,1733419839315,-200.0,7.683e-05,2]
[344409085,1733419839325,-278.97348233,7.683e-05,2]
[344409086,1733419839335,-200.0,7.683e-05,2]
[344409087,1733419839344,-2786.58834595,7.683e-05,2]
[344409088,1733419839354,-209.23011174,7.683e-05,2]
[344409089,1733419839371,-1567.4559446,7.683e-05,2]
[344409090,1733419839380,-200.0,7.683e-05,2]
[344409091,1733419839389,-200.0,7.684e-05,2]
[344409092,1733419839399,-217.41693779,7.684e-05,2]
[344409093,1733419839409,-209.23011174,7.684e-05,2]
[344409094,1733419839418,-2786.58834595,7.684e-05,2]
[344409095,1733419839428,-371.9646431,7.684e-05,2]
[344409096,1733419839437,-11109.60285859,7.684e-05,2]
[344409097,1733419839446,-200.0,7.684e-05,2]
[344409098,1733419839456,-11109.60285859,7.684e-05,2]
[344409099,1733419839467,-200.0,7.684e-05,2]
[344409100,1733419839476,-200.0,7.684e-05,2]
[344409101,1733419839485,-35111.83125678,7.684e-05,2]
[344409102,1733419839495,-14812.80381145,7.684e-05,2]
[344409103,1733419839504,-271.0671233,7.685e-05,2]
[344409104,1733419839514,-1175.59195845,7.685e-05,2]
[344409105,1733419839523,-495.95285747,7.685e-05,2]
[344409106,1733419839532,-35111.83125678,7.685e-05,2]
[344409107,1733419839542,-200.0,7.685e-05,2]
[344409108,1733419839551,-200.0,7.685e-05,2]
[344409109,1733419839563,-200.0,7.685e-05,2]
[344409110,1733419839572,-200.0,7.685e-05,2]
[344409111,1733419839582,-1567.4559446,7.686e-05,2]
[344409112,1733419839592,-1175.59195845,7.686e-05,2]
[344409113,1733419839601,-200.0,7.686e-05,2]
[344409114,1733419839614,-200.0,7.686e-05,2]
[344409115,1733419839624,-200.0,7.686e-05,2]
[344409116,1733419839633,-3715.45112793,7.686e-05,2]
[344409117,1733419839643,-26333.87344258,7.686e-05,2]
[344409118,1733419839653,-19750.40508194,7.687e-05,2]
[344409119,1733419839663,-464.93957211,7.687e-05,2]
[344409120,1733419839673,-14812.80381145,7.687e-05,2]
[344409121,1733419839687,-200.0,7.687e-05,2]
[344409122,1733419839697,-203.30034248,7.687e-05,2]
[344409123,1733419839706,-11109.60285859,7.687e-05,2]
[344409124,1733419839716,-464.93957211,7.687e-05,2]
[344409125,1733419839725,-11109.60285859,7.687e-05,2]
[344409126,1733419839735,-200.0,7.687e-05,2]
[344409127,1733419839745,-1567.4559446,7.687e-05,2]
[344409128,1733419839754,-3715.45112793,7.688e-05,2]
[344409129,1733419839764,-278.97348233,7.688e-05,2]
[344409130,1733419839774,-278.97348233,7.688e-05,2]
[344409131,1733419839783,-35111.83125678,7.688e-05,2]
[344409132,1733419839793,-200.0,7.688e-05,2]
[344409133,1733419839803,-348.70467908,7.688e-05,2]
[344409134,1733419839813,-2089.94125946,7.688e-05,2]
[344409135,1733419839822,-26333.87344258,7.688e-05,2]
[344409136,1733419839832,-495.95285747,7.689e-05,2]
[344409137,1733419839842,-200.0,7.689e-05,2]
[344409138,1733419839852,-35111.83125678,7.689e-05,2]
[344409139,1733419839865,-661.27047663,7.689e-05,2]
[344409140,1733419839875,-200.0,7.689e-05,2]
[344409141,1733419839885,-261.52850931,7.689e-05,2]
[344409142,1733419839897,-1175.59195845,7.689e-05,2]
[344409143,1733419839907,-200.0,7.69e-05,2]
[344409144,1733419839918,-661.27047663,7.69e-05,2]
[344409145,1733419839928,-371.9646431,7.69e-05,2]
[344409146,1733419839938,-200.0,7.69e-05,2]
[344409147,1733419839947,-2089.94125946,7.69e-05,2]
[344409148,1733419839957,-261.52850931,7.691e-05,2]
[344409149,1733419839968,-278.97348233,7.691e-05,2]
[344409150,1733419839978,-1175.59195845,7.691e-05,2]
[344409151,1733419839987,-464.93957211,7.691e-05,2]
[344409152,1733419839997,-200.0,7.691e-05,2]
[344409153,1733419840006,-881.69396883,7.691e-05,2]
[344409154,1733419840016,-495.95285747,7.691e-05,2]
[344409155,1733419840025,-881.69396883,7.691e-05,2]
[344409156,1733419840035,-271.0671233,7.691e-05,2]
[344409157,1733419840045,-200.0,7.691e-05,2]
[344409158,1733419840056,-1175.59195845,7.691e-05,2]
[344409159,1733419840065,-200.0,7.691e-05,2]
[344409160,1733419840075,-200.0,7.691e-05,2]
[344409161,1733419840085,-289.88925039,7.691e-05,2]
[344409162,1733419840094,-203.30034248,7.691e-05,2]
[344409163,1733419840103,-200.0,7.691e-05,2]
[344409164,1733419840115,-289.88925039,7.691e-05,2]
[344409165,1733419840125,-271.0671233,7.692e-05,2]
[344409166,1733419840135,-495.95285747,7.692e-05,2]
[344409167,1733419840145,-200.0,7.692e-05,2]
[344409168,1733419840154,-261.52850931,7.692e-05,2]
[344409169,1733419840164,-495.95285747,7.692e-05,2]
[344409170,1733419840173,-200.0,7.692e-05,2]
[344409171,1733419840183,-271.0671233,7.692e-05,2]
[344409172,1733419840193,-200.0,7.693e-05,2]
[344409173,1733419840202,-200.0,7.693e-05,2]
[344409174,1733419840212,-200.0,7.693e-05,2]
[344409175,1733419840222,-464.93957211,7.693e-05,2]
[344409176,1733419840231,-289.88925039,7.693e-05,2]
[344409177,1733419840240,-217.41693779,7.693e-05,2]
[344409178,1733419840250,-3715.45112793,7.693e-05,2]
[344409179,1733419840259,-203.30034248,7.693e-05,2]
[344409180,1733419840269,-881.69396883,7.693e-05,2]
[344409181,1733419840279,-348.70467908,7.694e-05,2]
[344409182,1733419840288,-200.0,7.694e-05,2]
[344409183,1733419840298,-203.30034248,7.694e-05,2]
[344409184,1733419840308,-289.88925039,7.694e-05,2]
[344409185,1733419840317,-200.0,7.694e-05,2]
[344409186,1733419840327,-200.0,7.694e-05,2]
[344409187,1733419840337,-200.0,7.694e-05,2]
[344409188,1733419840347,-209.23011174,7.694e-05,2]
[344409189,1733419840359,-200.0,7.694e-05,2]
[344409190,1733419840368,-278.97348233,7.694e-05,2]
[344409191,1733419840378,-371.9646431,7.695e-05,2]
[344409192,1733419840388,-661.27047663,7.695e-05,2]
[344409193,1733419840398,-200.0,7.695e-05,2]
[344409194,1733419840407,-35111.83125678,7.695e-05,2]
[344409195,1733419840417,-200.0,7.695e-05,2]
[344409196,1733419840426,-19750.40508194,7.695e-05,2]
[344409197,1733419840435,-495.95285747,7.695e-05,2]
[344409198,1733419840445,-209.23011174,7.695e-05,2]
[344409199,1733419840454,-1567.4559446,7.696e-05,2]
[344409200,1733419840464,-371.9646431,7.696e-05,2]
[344409201,1733419840474,-200.0,7.696e-05,2]
[344409202,1733419840484,-200.0,7.696e-05,2]
[344409203,1733419840494,-371.9646431,7.696e-05,2]
[344409204,1733419840503,-200.0,7.696e-05,2]
[344409205,1733419840513,-289.88925039,7.696e-05,2]
[344409206,1733419840523,-2089.94125946,7.696e-05,2]
[344409207,1733419840533,-200.0,7.696e-05,2]
[344409208,1733419840543,-1567.4559446,7.696e-05,2]
[344409209,1733419840553,-200.0,7.696e-05,2]
[344409210,1733419840563,-217.41693779,7.697e-05,2]
[344409211,1733419840573,-3715.45112793,7.697e-05,2]
[344409212,1733419840582,-2786.58834595,7.697e-05,2]
[344409213,1733419840592,-200.0,7.697e-05,2]
[344409214,1733419840602,-348.70467908,7.697e-05,2]
[344409215,1733419840612,-200.0,7.697e-05,2]
[344409216,1733419840622,-500.0,7.697e-05,2]
[344409217,1733419840631,-263.80286177,7.697e-05,2]
[344409218,1733419840640,-1311.71,7.697e-05,2]
[344409219,1733419840650,-1311.71,7.697e-05,2]
[344409220,1733419840659,-1330.01,7.697e-05,2]
[344409221,1733419840668,-1330.01,7.697e-05,2]
[344409222,1733419840678,-1017.76,7.697e-05,2]
[344409223,1733419840688,-1017.76,7.697e-05,2]
[344409224,1733419840697,-2508.12,7.697e-05,2]
[344409225,1733419840707,-2508.12,7.697e-05,2]
[344409226,1733419840716,-903.55,7.697e-05,2]
[344409227,1733419840726,-903.55,7.697e-05,2]
[344409228,1733419840735,-500.0,7.697e-05,2]
[344409229,1733419840745,-500.0,7.697e-05,2]
[344409230,1733419840755,-500.0,7.697e-05,2]
[344409231,1733419840765,-500.0,7.697e-05,2]
[344409232,1733419840774,-500.0,7.697e-05,2]
[344409233,1733419840783,-500.0,7.697e-05,2]
[344409234,1733419840792,-500.0,7.697e-05,2]
[344409235,1733419840802,-500.0,7.697e-05,2]
[344409236,1733419840811,-500.0,7.697e-05,2]
[344409237,1733419840821,-500.0,7.697e-05,2]
[344409238,1733419840830,-500.0,7.697e-05,2]
[344409239,1733419840840,-500.0,7.697e-05,2]
[344409240,1733419840849,-500.0,7.697e-05,2]
[344409241,1733419840860,-500.0,7.697e-05,2]
[344409242,1733419840870,-500.0,7.697e-05,2]
[344409243,1733419840884,-500.0,7.697e-05,2]
[344409244,1733419840893,-500.0,7.697e-05,2]
[344409245,1733419840903,-500.0,7.697e-05,2]
[344409246,1733419840912,-230.08681354,7.697e-05,2]
[344409247,1733419840922,-500.0,7.697e-05,2]
[344409248,1733419840932,-500.0,7.697e-05,2]
[344409249,1733419840942,-200.0,7.697e-05,2]
[344409250,1733419840951,-35111.83125678,7.697e-05,2]
[344409251,1733419840962,-200.0,7.698e-05,2]
[344409252,1733419840972,-261.52850931,7.698e-05,2]
[344409253,1733419840981,-261.52850931,7.698e-05,2]
[344409254,1733419840990,-200.0,7.698e-05,2]
[344409255,1733419841001,-661.27047663,7.698e-05,2]
[344409256,1733419841011,-200.0,7.698e-05,2]
[344409257,1733419841020,-200.0,7.698e-05,2]
[344409258,1733419841030,-505630.36489485,7.698e-05,2]
[344409259,1733419841039,-150.0,7.698e-05,2]
[344409260,1733419841049,-150.0,7.698e-05,2]
[344409261,1733419841059,-150.0,7.698e-05,2]
[344409262,1733419841068,-144811.61390089,7.698e-05,2]
[344409263,1733419841078,-12093.02075037,7.698e-05,2]
[344409264,1733419841088,-693.21815058,7.698e-05,2]
[344409265,1733419841097,-209.23011174,7.698e-05,2]
[344409266,1733419841108,-14812.80381145,7.698e-05,2]
[344409267,1733419841118,-661.27047663,7.698e-05,2]
[344409268,1733419841128,-14812.80381145,7.698e-05,2]
[344409269,1733419841138,-200.0,7.698e-05,2]
[344409270,1733419841148,-881.69396883,7.699e-05,2]
[344409271,1733419841158,-2786.58834595,7.699e-05,2]
[344409272,1733419841168,-661.27047663,7.699e-05,2]
[344409273,1733419841178,-19750.40508194,7.699e-05,2]
[344409274,1733419841187,-26333.87344258,7.699e-05,2]
[344409275,1733419841197,-203.30034248,7.699e-05,2]
[344409276,1733419841206,-14812.80381145,7.699e-05,2]
[344409277,1733419841216,-2786.58834595,7.699e-05,2]
[344409278,1733419841227,-7754.79104734,7.699e-05,2]
[344409279,1733419841237,-5800.0,7.699e-05,2]
[344409280,1733419841247,-7458.35032202,7.699e-05,2]
[344409281,1733419841256,-203.30034248,7.699e-05,2]
[344409282,1733419841266,-200.0,7.699e-05,2]
[344409283,1733419841275,-200.0,7.7e-05,2]
[344409284,1733419841285,-371.9646431,7.7e-05,2]
[344409285,1733419841295,-200.0,7.7e-05,2]
[344409286,1733419841305,-1799.8838,7.804e-05,2]
[344409287,1733419841316,-23900.0,7.972e-05,2]
[344409288,1733419841326,-202.06,7.972e-05,2]
[344409289,1733419841336,-489.15661601,8.177e-05,2]
[344409290,1733419841345,-150.99,8.177e-05,2]
[344409291,1733419841355,-175.96,8.177e-05,2]
[344409292,1733419841371,-683.324502,8.178e-05,2]
[344409293,1733419841380,-580.7553482,8.195e-05,2]
[344409294,1733419841390,-1000.0,8.219e-05,2]
[344409295,1733419841400,-250.0,8.219e-05,2]
[344409296,1733419841410,-240.57,8.219e-05,2]
[344409297,1733419841420,-5520.44,8.219e-05,2]
[344409298,1733419841430,-12363.82,8.219e-05,2]
[344409299,1733419841439,-1138.37,8.219e-05,2]
[344409300,1733419841448,-300.0,8.219e-05,2]
[344409301,1733419841458,-1000.0,8.221e-05,2]
[344409302,1733419841467,-150.0,8.259e-05,2]
[344409303,1733419841477,-640.0,8.293e-05,2]
[344409304,1733419841487,-160.0,8.398e-05,2]
[344409305,1733419841496,-310.2315,8.514e-05,2]
[344409306,1733419841506,-640.0,8.6e-05,2]
[344409307,1733419841515,-160.0,8.709e-05,2]
[344409308,1733419841525,-200.0,8.74e-05,2]
[344409309,1733419841535,-24003.53,8.767e-05,2]
[344409310,1733419841545,-2500.0,8.9e-05,2]
[344409311,1733419841555,-640.0,8.907e-05,2]
[344409312,1733419841564,-500.0,8.999e-05,2]
[344409313,1733419841574,-500.0,8.999e-05,2]
[344409314,1733419841583,-500.0,8.999e-05,2]
[344409315,1733419841592,-1311.71,8.999e-05,2]
[344409316,1733419841601,-500.0,8.999e-05,2]
[344409317,1733419841613,-1330.01,8.999e-05,2]
[344409318,1733419841622,-604.6,8.999e-05,2]
[344409319,1733419841632,-1017.76,8.999e-05,2]
[344409320,1733419841641,-500.0,8.999e-05,2]
[344409321,1733419841650,-2508.12,8.999e-05,2]
[344409322,1733419841659,-903.55,8.999e-05,2]
[344409323,1733419841669,-500.0,8.999e-05,2]
[344409324,1733419841678,-500.0,8.999e-05,2]
[344409325,1733419841688,-500.0,8.999e-05,2]
[344409326,1733419841697,-500.0,8.999e-05,2]
[344409327,1733419841707,-500.0,8.999e-05,2]
[344409328,1733419841716,-500.0,8.999e-05,2]
[344409329,1733419841726,-697.37,8.999e-05,2]
[344409330,1733419841735,-500.0,8.999e-05,2]
[344409331,1733419841744,-500.0,8.999e-05,2]
[344409332,1733419841754,-10073.52105288,9e-05,2]
[344409333,1733419841763,-162809.43090399,9e-05,2]
[344409334,1733419841772,-28000.0,9e-05,2]
[344409335,1733419841782,-300.0,9e-05,3]
[344409336,1733419841792,-4494.47802397,9e-05,2]
[344409337,1733419841801,-160.0,9.02e-05,2]
[344409338,1733419841810,-600.0,9.2e-05,3]
[344409339,1733419841819,-640.0,9.214e-05,2]
[344409340,1733419841828,-1000.0,9.247e-05,2]
[344409341,1733419841837,-1000.0,9.3e-05,3]
[344409342,1733419841847,-160.0,9.331e-05,2]
[344409343,1733419841856,-1300.0,9.4e-05,3]
[344409344,1733419841871,-1700.0,9.5e-05,3]
[344409345,1733419841885,-2003.0,9.52e-05,2]
[344409346,1733419841899,-150.0,9.52e-05,2]
[344409347,1733419841909,-239.042,9.52e-05,2]
[344409348,1733419841920,-5963.0,9.52e-05,2]
[344409349,1733419841930,-150.0,9.52e-05,2]
[344409350,1733419841940,-1262.0,9.52e-05,2]
[344409351,1733419841950,-13713.0,9.52e-05,2]
[344409352,1733419841959,-566.0,9.52e-05,2]
[344409353,1733419841971,-1166.0,9.52e-05,2]
[344409354,1733419841983,-640.0,9.52e-05,2]
[344409355,1733419841993,-300.0,9.6e-05,3]
[344409356,1733419842002,-160.0,9.641e-05,2]
[344409357,1733419842012,-2500.0,9.699e-05,2]
[344409358,1733419842022,-500.0,9.699e-05,2]
[344409359,1733419842031,-300.0,9.7e-05,3]
[344409360,1733419842041,-500.0,9.798e-05,2]
[344409361,1733419842051,-173.79605335,9.798e-05,2]
[344409362,1733419842060,-500.0,9.798e-05,2]
[344409363,1733419842070,-500.0,9.798e-05,2]
[344409364,1733419842079,-500.0,9.798e-05,2]
[344409365,1733419842088,-500.0,9.798e-05,2]
[344409366,1733419842098,-500.0,9.798e-05,2]
[344409367,1733419842107,-500.0,9.798e-05,2]
[344409368,1733419842119,-500.0,9.798e-05,2]
[344409369,1733419842128,-500.0,9.798e-05,2]
[344409370,1733419842138,-1311.71,9.798e-05,2]
[344409371,1733419842147,-500.0,9.798e-05,2]
[344409372,1733419842156,-500.0,9.798e-05,2]
[344409373,1733419842165,-1330.01,9.798e-05,2]
[344409374,1733419842175,-500.0,9.798e-05,2]
[344409375,1733419842184,-604.6,9.798e-05,2]
[344409376,1733419842193,-1017.76,9.798e-05,2]
[344409377,1733419842203,-500.0,9.798e-05,2]
[344409378,1733419842212,-2508.12,9.798e-05,2]